[Event "Live Chess"]
[Site "Chess.com"]
[Date "2023.05.21"]
[Round "-"]
[White "domrobson"]
[Black "JohanKjeldahl"]
[Result "0-1"]
[WhiteElo "1729"]
[BlackElo "1868"]
[TimeControl "300"]
[EndTime "17:13:14 PDT"]
[Termination "JohanKjeldahl won by resignation"]

1. d4 {[%clk 0:04:59.5]} 1... Nf6 {[%clk 0:04:57.1]} 2. c4 {[%clk 0:04:58.8]}
2... e5 {[%clk 0:04:56.1]} 3. dxe5 {[%clk 0:04:57.9]} 3... Ng4 {[%clk 0:04:55]}
4. Bf4 {[%clk 0:04:56.4]} 4... Nc6 {[%clk 0:04:53.2]} 5. Nf3 {[%clk 0:04:55.8]}
5... Bb4+ {[%clk 0:04:50.6]} 6. Nbd2 {[%clk 0:04:54.7]} 6... Qe7 {[%clk
0:04:46.9]} 7. e3 {[%clk 0:04:54]} 7... Ngxe5 {[%clk 0:04:44.6]} 8. Nxe5 {[%clk
0:04:52.1]} 8... Nxe5 {[%clk 0:04:43.2]} 9. Be2 {[%clk 0:04:51.8]} 9... d6
{[%clk 0:04:40.2]} 10. O-O {[%clk 0:04:51]} 10... O-O {[%clk 0:04:36.9]} 11. Nb3
{[%clk 0:04:48.6]} 11... a5 {[%clk 0:04:33.5]} 12. a3 {[%clk 0:04:47.3]} 12...
Bc5 {[%clk 0:04:29]} 13. Nxc5 {[%clk 0:04:45.2]} 13... dxc5 {[%clk 0:04:28]} 14.
Qd5 {[%clk 0:04:40.8]} 14... Ng6 {[%clk 0:04:18.4]} 15. Bg3 {[%clk 0:04:37.4]}
15... Be6 {[%clk 0:04:10.5]} 16. Qxb7 {[%clk 0:04:34.8]} 16... Rab8 {[%clk
0:04:09.2]} 17. Qxc7 {[%clk 0:04:33.6]} 17... Qxc7 {[%clk 0:04:07.2]} 18. Bxc7
{[%clk 0:04:32.3]} 18... Rxb2 {[%clk 0:04:05.5]} 19. Bf3 {[%clk 0:04:31.3]}
19... Bxc4 {[%clk 0:04:01.1]} 20. Rfc1 {[%clk 0:04:30.6]} 20... Bb3 {[%clk
0:03:53.9]} 21. Rxc5 {[%clk 0:04:26.3]} 21... a4 {[%clk 0:03:52.7]} 22. Bd6
{[%clk 0:04:23.7]} 22... Rd8 {[%clk 0:03:43.8]} 23. Rac1 {[%clk 0:04:15.3]} 0-1

[Event "Live Chess"]
[Site "Chess.com"]
[Date "2023.05.21"]
[Round "-"]
[White "Man-Del-Brot"]
[Black "DerbyKnight"]
[Result "0-1"]
[WhiteElo "1066"]
[BlackElo "1575"]
[TimeControl "300"]
[EndTime "17:13:53 PDT"]
[Termination "DerbyKnight won by resignation"]

1. d4 {[%clk 0:04:55.3]} 1... d5 {[%clk 0:04:58.2]} 2. Nf3 {[%clk 0:04:53.9]}
2... Nf6 {[%clk 0:04:56.7]} 3. Be3 {[%clk 0:04:52.2]} 3... Bf5 {[%clk
0:04:50.5]} 4. Bf4 {[%clk 0:04:50.7]} 4... e6 {[%clk 0:04:38.7]} 5. e3 {[%clk
0:04:47.7]} 5... Bd6 {[%clk 0:04:35.7]} 6. Ne5 {[%clk 0:04:45.9]} 6... c5 {[%clk
0:04:32.6]} 7. c3 {[%clk 0:04:44.2]} 7... O-O {[%clk 0:04:28.8]} 8. Nd2 {[%clk
0:04:42.5]} 8... Qc7 {[%clk 0:04:27.4]} 9. Ndf3 {[%clk 0:04:40.9]} 9... Nbd7
{[%clk 0:04:21.5]} 10. Nxd7 {[%clk 0:04:38.4]} 10... Qxd7 {[%clk 0:04:16.6]} 11.
Ne5 {[%clk 0:04:36.8]} 11... Qc7 {[%clk 0:04:12.7]} 12. Bd3 {[%clk 0:04:25.5]}
12... Bxd3 {[%clk 0:04:06.7]} 13. Qxd3 {[%clk 0:04:23.9]} 13... cxd4 {[%clk
0:04:05.6]} 14. exd4 {[%clk 0:04:21.9]} 14... Rac8 {[%clk 0:03:53.9]} 15. O-O
{[%clk 0:04:18.8]} 15... Rfd8 {[%clk 0:03:49.3]} 16. h3 {[%clk 0:04:10]} 16...
Ne4 {[%clk 0:03:33]} 17. Rac1 {[%clk 0:03:50.5]} 17... f6 {[%clk 0:03:28.1]} 18.
f3 {[%clk 0:03:21.7]} 18... fxe5 {[%clk 0:03:10.3]} 19. dxe5 {[%clk 0:03:19]}
19... Bxe5 {[%clk 0:02:58]} 20. Bxe5 {[%clk 0:03:17.3]} 20... Qxe5 {[%clk
0:02:56.5]} 21. fxe4 {[%clk 0:03:16.1]} 21... dxe4 {[%clk 0:02:54.9]} 22. Qe3
{[%clk 0:02:44.5]} 22... Rd3 {[%clk 0:02:49.3]} 23. Qxa7 {[%clk 0:02:40.8]}
23... e3 {[%clk 0:02:37.5]} 24. Qxb7 {[%clk 0:02:38.7]} 24... Rf8 {[%clk
0:02:27.5]} 25. Rf7 {[%clk 0:02:31.4]} 25... Rxf7 {[%clk 0:02:23.8]} 26. Qb3
{[%clk 0:01:53.3]} 26... e2 {[%clk 0:02:16.9]} 27. c4 {[%clk 0:01:42.1]} 27...
Rxb3 {[%clk 0:02:12.4]} 0-1

[Event "Live Chess"]
[Site "Chess.com"]
[Date "2023.05.21"]
[Round "-"]
[White "LiamClery2020"]
[Black "DaveL5678"]
[Result "1-0"]
[WhiteElo "2028"]
[BlackElo "997"]
[TimeControl "300"]
[EndTime "17:14:07 PDT"]
[Termination "LiamClery2020 won by checkmate"]

1. e4 {[%clk 0:04:56.8]} 1... e6 {[%clk 0:04:58.3]} 2. d4 {[%clk 0:04:55.1]}
2... d5 {[%clk 0:04:57.9]} 3. Nd2 {[%clk 0:04:54.4]} 3... c5 {[%clk 0:04:56.8]}
4. c3 {[%clk 0:04:53.5]} 4... cxd4 {[%clk 0:04:54.6]} 5. cxd4 {[%clk 0:04:53.4]}
5... dxe4 {[%clk 0:04:50.8]} 6. Nxe4 {[%clk 0:04:53.3]} 6... Qb6 {[%clk
0:04:45.2]} 7. Nf3 {[%clk 0:04:52.1]} 7... Bb4+ {[%clk 0:04:35.1]} 8. Bd2 {[%clk
0:04:51.1]} 8... Nc6 {[%clk 0:04:24.5]} 9. a3 {[%clk 0:04:48.7]} 9... Bxd2+
{[%clk 0:04:18.8]} 10. Qxd2 {[%clk 0:04:48.6]} 10... Ke7 {[%clk 0:04:00.2]} 11.
Ne5 {[%clk 0:04:42.2]} 11... Nxe5 {[%clk 0:03:56]} 12. dxe5 {[%clk 0:04:41]}
12... Nh6 {[%clk 0:03:49.6]} 13. Qg5+ {[%clk 0:04:39.2]} 13... Kf8 {[%clk
0:03:25.7]} 14. Rd1 {[%clk 0:04:37.5]} 14... Nf5 {[%clk 0:03:12.3]} 15. Rd8+
{[%clk 0:04:36]} 15... Qxd8 {[%clk 0:03:10.1]} 16. Qxd8# {[%clk 0:04:35.9]} 1-0

[Event "Live Chess"]
[Site "Chess.com"]
[Date "2023.05.21"]
[Round "-"]
[White "grillage"]
[Black "Tilbs_12"]
[Result "0-1"]
[WhiteElo "1818"]
[BlackElo "1557"]
[TimeControl "300"]
[EndTime "17:14:08 PDT"]
[Termination "Tilbs_12 won on time"]

1. d4 {[%clk 0:04:59.4]} 1... d5 {[%clk 0:04:58.7]} 2. Nf3 {[%clk 0:04:57.5]}
2... Nf6 {[%clk 0:04:57.2]} 3. c4 {[%clk 0:04:55.1]} 3... c6 {[%clk 0:04:56]} 4.
Qc2 {[%clk 0:04:53.6]} 4... e6 {[%clk 0:04:50.1]} 5. Bg5 {[%clk 0:04:51.6]} 5...
Be7 {[%clk 0:04:48.6]} 6. e3 {[%clk 0:04:47.7]} 6... Ne4 {[%clk 0:04:47.4]} 7.
Bxe7 {[%clk 0:04:46.1]} 7... Qxe7 {[%clk 0:04:46.3]} 8. Nc3 {[%clk 0:04:43.1]}
8... f5 {[%clk 0:04:42.7]} 9. Ne5 {[%clk 0:04:34.2]} 9... Nd7 {[%clk 0:04:40.2]}
10. Nxd7 {[%clk 0:04:31.9]} 10... Bxd7 {[%clk 0:04:39]} 11. O-O-O {[%clk
0:04:07.3]} 11... Qh4 {[%clk 0:04:02]} 12. g3 {[%clk 0:04:00.6]} 12... Qh6
{[%clk 0:04:00.9]} 13. Kb1 {[%clk 0:03:55.1]} 13... O-O-O {[%clk 0:03:52.5]} 14.
c5 {[%clk 0:03:52.2]} 14... Qf6 {[%clk 0:03:41.5]} 15. f3 {[%clk 0:03:46.3]}
15... Ng5 {[%clk 0:03:39]} 16. Be2 {[%clk 0:03:42.7]} 16... h5 {[%clk
0:03:28.5]} 17. h4 {[%clk 0:03:41.3]} 17... Nf7 {[%clk 0:03:26.8]} 18. Qa4
{[%clk 0:03:27.5]} 18... Kb8 {[%clk 0:03:23.6]} 19. Ka1 {[%clk 0:03:23.6]} 19...
g5 {[%clk 0:03:15.2]} 20. b4 {[%clk 0:03:13.5]} 20... e5 {[%clk 0:03:09.1]} 21.
b5 {[%clk 0:03:08.8]} 21... cxb5 {[%clk 0:03:00.6]} 22. Bxb5 {[%clk 0:03:05.7]}
22... Bxb5 {[%clk 0:02:57.4]} 23. Nxb5 {[%clk 0:02:55.1]} 23... a6 {[%clk
0:02:44.8]} 24. Nc3 {[%clk 0:02:50.4]} 24... Qc6 {[%clk 0:02:33.8]} 25. Qb3
{[%clk 0:02:38.8]} 25... exd4 {[%clk 0:02:25.6]} 26. exd4 {[%clk 0:02:36.6]}
26... g4 {[%clk 0:02:21.4]} 27. f4 {[%clk 0:02:30.1]} 27... Rhe8 {[%clk
0:02:19.6]} 28. Rde1 {[%clk 0:02:28.1]} 28... Re6 {[%clk 0:02:09.2]} 29. Rxe6
{[%clk 0:02:14.1]} 29... Qxe6 {[%clk 0:02:07.4]} 30. Rb1 {[%clk 0:02:06.4]}
30... Qc6 {[%clk 0:01:59.9]} 31. Re1 {[%clk 0:01:59.7]} 31... Nh6 {[%clk
0:01:46.6]} 32. Re7 {[%clk 0:01:54.8]} 32... Ng8 {[%clk 0:01:44.6]} 33. Re5
{[%clk 0:01:42.6]} 33... Nf6 {[%clk 0:01:40.2]} 34. Rxf5 {[%clk 0:01:40]} 34...
Ne4 {[%clk 0:01:39.1]} 35. Rxd5 {[%clk 0:01:07.9]} 35... Rxd5 {[%clk 0:01:30]}
36. Nxd5 {[%clk 0:01:06.9]} 36... Nxg3 {[%clk 0:01:26.7]} 37. Ne7 {[%clk
0:00:34.3]} 37... Qh1+ {[%clk 0:01:20.4]} 38. Kb2 {[%clk 0:00:33.4]} 38... Qxh4
{[%clk 0:01:15.6]} 39. Qe6 {[%clk 0:00:21.6]} 39... Qh2+ {[%clk 0:01:11.1]} 40.
Ka3 {[%clk 0:00:17.9]} 40... Qh1 {[%clk 0:00:58.4]} 41. Qd6+ {[%clk 0:00:16.8]}
41... Ka8 {[%clk 0:00:55.1]} 42. Qd8+ {[%clk 0:00:14.3]} 42... Ka7 {[%clk
0:00:53.9]} 43. Qb6+ {[%clk 0:00:13.7]} 43... Kb8 {[%clk 0:00:52.6]} 44. Nc6+
{[%clk 0:00:12.7]} 44... Kc8 {[%clk 0:00:50.9]} 45. Ne7+ {[%clk 0:00:08.2]}
45... Kd7 {[%clk 0:00:48.4]} 46. Qd6+ {[%clk 0:00:06.3]} 46... Ke8 {[%clk
0:00:47.4]} 47. Nd5 {[%clk 0:00:01.6]} 47... Qxd5 {[%clk 0:00:43.9]} 0-1

[Event "Live Chess"]
[Site "Chess.com"]
[Date "2023.05.21"]
[Round "-"]
[White "wot-not"]
[Black "gmnorfolk"]
[Result "0-1"]
[WhiteElo "1544"]
[BlackElo "2118"]
[TimeControl "300"]
[EndTime "17:14:24 PDT"]
[Termination "gmnorfolk won by resignation"]

1. e4 {[%clk 0:04:56]} 1... c5 {[%clk 0:04:58.2]} 2. f4 {[%clk 0:04:55.5]} 2...
d5 {[%clk 0:04:56.7]} 3. e5 {[%clk 0:04:55]} 3... Nc6 {[%clk 0:04:55.1]} 4. Nf3
{[%clk 0:04:54.6]} 4... Bg4 {[%clk 0:04:54]} 5. Bb5 {[%clk 0:04:52.1]} 5... Qb6
{[%clk 0:04:51.7]} 6. Bxc6+ {[%clk 0:04:50.9]} 6... Qxc6 {[%clk 0:04:50.2]} 7.
O-O {[%clk 0:04:50.6]} 7... e6 {[%clk 0:04:49]} 8. d4 {[%clk 0:04:49.8]} 8...
cxd4 {[%clk 0:04:45.4]} 9. Nbd2 {[%clk 0:04:49]} 9... h5 {[%clk 0:04:42.5]} 10.
Nb3 {[%clk 0:04:47.8]} 10... Bc5 {[%clk 0:04:34.9]} 11. Nxc5 {[%clk 0:04:44.5]}
11... Qxc5 {[%clk 0:04:33]} 12. Kh1 {[%clk 0:04:44.2]} 12... Bxf3 {[%clk
0:04:31.2]} 13. Qxf3 {[%clk 0:04:42.6]} 13... Nh6 {[%clk 0:04:26.7]} 14. Qb3
{[%clk 0:04:29.5]} 14... O-O-O {[%clk 0:04:15.2]} 15. Bd2 {[%clk 0:04:25.5]}
15... h4 {[%clk 0:04:12.7]} 16. Bb4 {[%clk 0:04:24.3]} 16... Qb6 {[%clk
0:04:09]} 17. a4 {[%clk 0:04:22]} 17... a5 {[%clk 0:03:54.2]} 18. Bd6 {[%clk
0:04:19.1]} 18... Qxb3 {[%clk 0:03:50.4]} 19. cxb3 {[%clk 0:04:18.3]} 19... Nf5
{[%clk 0:03:49.7]} 20. Bc5 {[%clk 0:04:09.6]} 20... Rh5 {[%clk 0:03:40.9]} 21.
Bb6 {[%clk 0:04:05.3]} 21... Ng3+ {[%clk 0:03:34.5]} 22. hxg3 {[%clk 0:03:58.6]}
22... hxg3+ {[%clk 0:03:32.8]} 23. Kg1 {[%clk 0:03:58.1]} 23... Rdh8 {[%clk
0:03:30.2]} 24. Rfc1+ {[%clk 0:03:53]} 24... Kb8 {[%clk 0:03:28]} 25. Kf1 {[%clk
0:03:51.3]} 25... Rf5 {[%clk 0:03:22.4]} 26. Bc7+ {[%clk 0:03:29]} 26... Ka7
{[%clk 0:03:18.3]} 27. Bxa5 {[%clk 0:03:28]} 27... Rxf4+ {[%clk 0:03:14.9]} 28.
Ke2 {[%clk 0:03:27.4]} 28... Rh2 {[%clk 0:03:11.1]} 29. Rg1 {[%clk 0:03:22.6]}
29... Rf2+ {[%clk 0:02:56.7]} 30. Kd3 {[%clk 0:03:20.5]} 30... Rxb2 {[%clk
0:02:56.2]} 31. Kxd4 {[%clk 0:03:03.3]} 31... Rhxg2 {[%clk 0:02:50.4]} 32. Rxg2
{[%clk 0:03:01.7]} 32... Rxg2 {[%clk 0:02:50.3]} 33. Kc5 {[%clk 0:02:48.9]}
33... Rc2+ {[%clk 0:02:43.3]} 34. Kd6 {[%clk 0:02:47.7]} 34... b6 {[%clk
0:02:38.2]} 35. Bb4 {[%clk 0:02:42.3]} 35... Rb2 {[%clk 0:02:33.7]} 36. a5
{[%clk 0:02:35.3]} 36... Rxb3 {[%clk 0:02:26.9]} 37. axb6+ {[%clk 0:02:33.9]}
37... Kxb6 {[%clk 0:02:25.3]} 38. Bc5+ {[%clk 0:02:32.7]} 38... Kb5 {[%clk
0:02:23.4]} 39. Bg1 {[%clk 0:02:22.1]} 39... Rf3 {[%clk 0:02:10.8]} 40. Ke7
{[%clk 0:02:20.2]} 40... g5 {[%clk 0:02:03.6]} 41. Kd6 {[%clk 0:02:06]} 41...
Kc4 {[%clk 0:01:54.2]} 42. Rd1 {[%clk 0:02:01.9]} 42... Kc3 {[%clk 0:01:42.1]}
43. Ke7 {[%clk 0:01:59.6]} 43... Kc2 {[%clk 0:01:40.6]} 44. Ra1 {[%clk
0:01:53.5]} 44... Kd2 {[%clk 0:01:28.1]} 45. Kf8 {[%clk 0:01:49.6]} 45... Ke2
{[%clk 0:01:19.8]} 46. Kg7 {[%clk 0:01:46.8]} 46... Rf5 {[%clk 0:01:16.4]} 47.
Bd4 {[%clk 0:01:39.6]} 47... g2 {[%clk 0:01:14.5]} 48. Kh6 {[%clk 0:01:33.7]}
48... Rf1 {[%clk 0:01:11.6]} 49. Ra2+ {[%clk 0:01:31.7]} 49... Kf3 {[%clk
0:01:09.4]} 50. Kxg5 {[%clk 0:01:27.8]} 50... g1=Q+ {[%clk 0:01:08]} 51. Bxg1
{[%clk 0:01:26.9]} 51... Rxg1+ {[%clk 0:01:03.1]} 52. Kf6 {[%clk 0:01:26.2]}
52... Ke4 {[%clk 0:00:51.9]} 53. Re2+ {[%clk 0:01:22.7]} 53... Kd3 {[%clk
0:00:47.6]} 54. Rh2 {[%clk 0:01:12.7]} 54... Rf1+ {[%clk 0:00:45]} 55. Ke7
{[%clk 0:01:11.7]} 55... d4 {[%clk 0:00:40.8]} 56. Rh3+ {[%clk 0:01:10.9]} 56...
Kc4 {[%clk 0:00:39.7]} 57. Rh8 {[%clk 0:01:03.7]} 57... d3 {[%clk 0:00:38.5]}
58. Rc8+ {[%clk 0:01:03.5]} 58... Kd4 {[%clk 0:00:36.7]} 59. Rd8+ {[%clk
0:01:02.1]} 59... Kxe5 {[%clk 0:00:34.1]} 60. Rxd3 {[%clk 0:01:00.7]} 60... Rf5
{[%clk 0:00:31.4]} 61. Re3+ {[%clk 0:00:58.1]} 61... Kf4 {[%clk 0:00:29.8]} 62.
Ra3 {[%clk 0:00:53.8]} 62... e5 {[%clk 0:00:29.1]} 63. Kd6 {[%clk 0:00:49.3]}
63... e4 {[%clk 0:00:28.7]} 64. Ra4 {[%clk 0:00:46.2]} 64... Kf3 {[%clk
0:00:27.2]} 65. Ra8 {[%clk 0:00:41.9]} 65... e3 {[%clk 0:00:26.8]} 66. Re8
{[%clk 0:00:40.3]} 66... e2 {[%clk 0:00:25.6]} 67. Re7 {[%clk 0:00:34.5]} 67...
Kf2 {[%clk 0:00:23.4]} 68. Re4 {[%clk 0:00:28.8]} 68... e1=Q {[%clk 0:00:22.1]}
69. Rxe1 {[%clk 0:00:27.5]} 69... Kxe1 {[%clk 0:00:21]} 0-1

[Event "Live Chess"]
[Site "Chess.com"]
[Date "2023.05.21"]
[Round "-"]
[White "LL220284LL"]
[Black "xx_blindpuffin_xx"]
[Result "0-1"]
[WhiteElo "2322"]
[BlackElo "2221"]
[TimeControl "300"]
[EndTime "17:14:28 PDT"]
[Termination "xx_blindpuffin_xx won by resignation"]

1. e4 {[%clk 0:04:58.1]} 1... c6 {[%clk 0:04:58.4]} 2. Nf3 {[%clk 0:04:55.9]}
2... d5 {[%clk 0:04:54.2]} 3. d3 {[%clk 0:04:54.8]} 3... dxe4 {[%clk 0:04:46.1]}
4. dxe4 {[%clk 0:04:54.7]} 4... Qxd1+ {[%clk 0:04:45]} 5. Kxd1 {[%clk
0:04:54.3]} 5... g6 {[%clk 0:04:42.4]} 6. Nbd2 {[%clk 0:04:52.6]} 6... Bg7
{[%clk 0:04:39.6]} 7. c3 {[%clk 0:04:51.7]} 7... Nf6 {[%clk 0:04:38.1]} 8. Kc2
{[%clk 0:04:49.4]} 8... Ng4 {[%clk 0:04:36.7]} 9. Bc4 {[%clk 0:04:45.4]} 9...
O-O {[%clk 0:04:08.7]} 10. Rf1 {[%clk 0:04:39.3]} 10... Nd7 {[%clk 0:04:00.5]}
11. h3 {[%clk 0:04:37]} 11... Nge5 {[%clk 0:03:58.1]} 12. Nxe5 {[%clk
0:04:35.9]} 12... Nxe5 {[%clk 0:03:57]} 13. Bb3 {[%clk 0:04:33.7]} 13... a5
{[%clk 0:03:54.4]} 14. a4 {[%clk 0:04:31.9]} 14... Rd8 {[%clk 0:03:49.1]} 15. f4
{[%clk 0:04:29.2]} 15... Nd3 {[%clk 0:03:48.1]} 16. Nc4 {[%clk 0:04:26.6]} 16...
Nc5 {[%clk 0:03:43.5]} 17. Nb6 {[%clk 0:04:19.4]} 17... Nxb3 {[%clk 0:03:42.1]}
18. Kxb3 {[%clk 0:04:18.3]} 18... Be6+ {[%clk 0:03:41.1]} 19. Kc2 {[%clk
0:04:09.5]} 19... Ra6 {[%clk 0:03:39.7]} 20. Be3 {[%clk 0:04:08.7]} 20... f5
{[%clk 0:03:32.5]} 21. e5 {[%clk 0:04:04.4]} 21... Bd5 {[%clk 0:03:22.5]} 22.
Rfd1 {[%clk 0:03:59.6]} 22... e6 {[%clk 0:03:15.4]} 23. c4 {[%clk 0:03:57.3]}
23... Be4+ {[%clk 0:03:14]} 24. Kc3 {[%clk 0:03:54.9]} 24... Rxd1 {[%clk
0:03:05.8]} 25. Rxd1 {[%clk 0:03:54.8]} 25... Bf8 {[%clk 0:03:05]} 26. Rd7
{[%clk 0:03:51.6]} 26... c5 {[%clk 0:03:03.5]} 27. Rd8 {[%clk 0:03:45.4]} 27...
Kf7 {[%clk 0:02:15]} 28. Nd7 {[%clk 0:03:36.7]} 28... Be7 {[%clk 0:02:12]} 29.
Rc8 {[%clk 0:03:32.1]} 29... Bxg2 {[%clk 0:02:08]} 30. h4 {[%clk 0:03:29.5]}
30... Bxh4 {[%clk 0:02:00.8]} 31. Nxc5 {[%clk 0:03:25.8]} 31... Rc6 {[%clk
0:01:56.9]} 32. Rh8 {[%clk 0:03:19.4]} 32... h5 {[%clk 0:01:50.5]} 33. Nxb7
{[%clk 0:03:13.7]} 33... Kg7 {[%clk 0:01:44.9]} 34. Rb8 {[%clk 0:03:09.2]} 34...
Be1+ {[%clk 0:01:38.7]} 35. Kb3 {[%clk 0:03:03.1]} 35... Rc7 {[%clk 0:01:30.3]}
36. Nd6 {[%clk 0:02:56.8]} 36... Rd7 {[%clk 0:01:22.9]} 37. Ne8+ {[%clk
0:02:47.8]} 37... Kf7 {[%clk 0:01:21.1]} 38. Nf6 {[%clk 0:02:47.1]} 38... Rb7+
{[%clk 0:01:17.1]} 39. Rxb7+ {[%clk 0:02:45.6]} 39... Bxb7 {[%clk 0:01:16.9]}
40. Bg1 {[%clk 0:02:41.7]} 40... h4 {[%clk 0:01:15]} 41. c5 {[%clk 0:02:40.5]}
41... Bc6 {[%clk 0:01:08.7]} 42. Kc2 {[%clk 0:02:36.3]} 42... Bg3 {[%clk
0:01:05.7]} 43. Kd3 {[%clk 0:02:30.6]} 43... Bxf4 {[%clk 0:01:04.7]} 44. Kd4
{[%clk 0:02:29.7]} 44... h3 {[%clk 0:01:01.4]} 45. b3 {[%clk 0:02:28.8]} 0-1

[Event "Live Chess"]
[Site "Chess.com"]
[Date "2023.05.21"]
[Round "-"]
[White "Olisingapore"]
[Black "ClassyChameleon"]
[Result "0-1"]
[WhiteElo "1803"]
[BlackElo "1104"]
[TimeControl "300"]
[EndTime "17:14:51 PDT"]
[Termination "ClassyChameleon won by resignation"]

1. d4 {[%clk 0:04:55.5]} 1... d5 {[%clk 0:04:58.7]} 2. c4 {[%clk 0:04:55.1]}
2... e6 {[%clk 0:04:57.6]} 3. Nf3 {[%clk 0:04:54.4]} 3... c6 {[%clk 0:04:56.4]}
4. g3 {[%clk 0:04:53.9]} 4... Bd6 {[%clk 0:04:53.7]} 5. Bg2 {[%clk 0:04:53.5]}
5... Nf6 {[%clk 0:04:52]} 6. O-O {[%clk 0:04:53.1]} 6... O-O {[%clk 0:04:50.5]}
7. Qd3 {[%clk 0:04:51.6]} 7... b5 {[%clk 0:04:47.2]} 8. cxb5 {[%clk 0:04:49]}
8... cxb5 {[%clk 0:04:45.8]} 9. Qxb5 {[%clk 0:04:47.8]} 9... Ba6 {[%clk
0:04:44.1]} 10. Qb3 {[%clk 0:04:41.1]} 10... Bxe2 {[%clk 0:04:41.7]} 11. Re1
{[%clk 0:04:39.6]} 11... Bxf3 {[%clk 0:04:40.5]} 12. Bxf3 {[%clk 0:04:38.1]}
12... Nc6 {[%clk 0:04:35.6]} 13. Qd3 {[%clk 0:04:06]} 13... Nb4 {[%clk
0:04:24.3]} 14. Qd1 {[%clk 0:04:00.7]} 14... Rc8 {[%clk 0:04:19.5]} 15. Na3
{[%clk 0:03:52.2]} 15... Nd7 {[%clk 0:04:09.7]} 16. Nb5 {[%clk 0:03:48.5]} 16...
Nb6 {[%clk 0:03:55.8]} 17. Nxa7 {[%clk 0:03:43.6]} 17... Rc4 {[%clk 0:03:47.7]}
18. b3 {[%clk 0:03:37.4]} 18... Rc3 {[%clk 0:03:39.9]} 19. Nb5 {[%clk
0:03:33.3]} 19... Rxf3 {[%clk 0:03:37]} 20. Qxf3 {[%clk 0:03:28.2]} 20... Nc2
{[%clk 0:03:36.3]} 21. Nxd6 {[%clk 0:03:21.4]} 21... Nxe1 {[%clk 0:03:29.7]} 22.
Ba3 {[%clk 0:03:19.2]} 22... Nxf3+ {[%clk 0:03:27.6]} 0-1